Cogmind - Beta 13 @@@ ROGUE MODE // 2024.07.29 @ 15:32:51 Player: Dzuchun Result: Destroyed by X-57 Shotgunner with Shotgun Performance ------------- Evolutions (2) 1000 Regions Visited (3) 600 Robots Destroyed (9) 45 Value Destroyed (319) 319 Prototype IDs (1) 20 Alien Tech Used (0) 0 Bonus (0) 0 TOTAL SCORE: 1984 Bonus ------- None Cogmind --------- Core Integrity 0/550 Matter 154/300 Energy 100/100 System Corruption 0% Temperature Cool (0) Movement Core (50) Location -8/Materials Parts ------- > --- POWER (3) -------- (None) > --- PROPULSION (4) --- (None) > --- UTILITY (2) ------ Visual Processing Unit > --- WEAPON (2) ------- (None) > --- INVENTORY (5) ---- Small Storage Unit Terrain Scan Processor Peak State ------------ > --- POWER ------------ Light Deuterium Engine Light Deuterium Engine > --- PROPULSION ------- Armored Treads Armored Treads Armored Treads Armored Treads > --- UTILITY ---------- Visual Processing Unit System Shield > --- WEAPON ----------- Field Laser Ion Cannon > --- INVENTORY -------- Small Storage Unit Sensor Array Terrain Scan Processor Improved Datajack [Rating: 29] Favorites ----------- Power Light Deuterium Engine Engine Light Deuterium Engine Propulsion Armored Treads Treads Armored Treads Leg Aluminum Leg Utility Visual Processing Unit Device Sensor Array Storage Small Storage Unit Processor Visual Processing Unit Hackware System Shield Weapon Assault Rifle Energy Gun Field Laser Energy Cannon Ion Cannon Ballistic Gun Assault Rifle Special Melee Weapon Improved Datajack Build | -11 -10 -9 -8 ------- Run | Yrd Mat Mat Mat Slots Evolved 4 | . . 2 2 Power 2 | . . . 2 Propulsion 2 | . . 2 . Utility . | . . . . Weapon . | . . . . Parts Attached 23 | 7 3 5 8 Power 4 | 2 . 1 1 Engine 4 | 2 . 1 1 Core . | . . . . Reactor . | . . . . Propulsion 8 | 2 1 4 1 Treads 5 | . . 4 1 Leg 3 | 2 1 . . Wheel . | . . . . Hover . | . . . . Flight . | . . . . Utility 5 | 1 2 . 2 Device 2 | . 1 . 1 Storage 1 | 1 . . . Processor 1 | . 1 . . Hackware 1 | . . . 1 Protection . | . . . . Artifact . | . . . . Weapon 6 | 2 . . 4 Energy Gun 1 | . . . 1 Energy Cannon 1 | . . . 1 Ballistic Gun 2 | 2 . . . Ballistic Cannon . | . . . . Launcher . | . . . . Special Weapon . | . . . . Impact Weapon . | . . . . Slashing Weapon . | . . . . Piercing Weapon . | . . . . Special Melee Weapon 2 | . . . 2 Unidentified Prototypes 1 | . . . 1 Parts Lost 10 | . . . 10 Power 2 | . . . 2 Propulsion 5 | . . . 5 Utility 1 | . . . 1 Weapon 2 | . . . 2 Highest Loss Streak 9 | . . . 9 To Critical Strikes 2 | . . . 2 Average Slot Usage (%) 86 | . 96 83 81 Engine 13 | . 14 11 14 Treads 17 | . . 13 33 Leg 13 | . 28 14 . Device 9 | . 9 11 8 Storage 1 | . 4 . . Processor 10 | . 10 11 9 Energy Cannon 2 | . . . 6 Ballistic Gun 15 | . 28 22 1 Special Melee Weapon 2 | . . . 6 Naked Turns . | . . . . Heaviest Build 20 | 12 12 10 20 Greatest Support 80 | 20 20 80 80 Greatest Overweight (x) 3 | 3 . . . Average Overweight (x) . | . . . . Largest Inventory Capacity 8 | 8 8 5 5 Average Capacity 5 | 7 5 5 5 Most Carried 5 | 3 5 5 4 Average Carried 3 | 1 3 4 2 Final Capacity 8 | 8 5 5 5 Final Carried 4 | 3 4 4 2 Class Distribution -------------------- 100% | Mutant Dominant Class ---------------- Mutant | -10/Materials Mutant | -9/Materials Mutant | -8/Materials Resources | -11 -10 -9 -8 ----------- Run | Yrd Mat Mat Mat Matter Collected 357 | 166 147 . 44 Remotely . | . . . . Salvage Created 369 | . 217 . 152 Parts 20 | . 15 . 5 Haulers Intercepted . | . . . . Recyclers Shooed . | . . . . Parts Field Recycled . | . . . . Retrieved Matter . | . . . . Parts Self-Destructed . | . . . . Prevented . | . . . . Kills | -11 -10 -9 -8 ------- Run | Yrd Mat Mat Mat Combat Hostiles Destroyed 7 | . 4 . 3 Guns 4 | . 4 . . Cannons 3 | . . . 3 Classes Destroyed 2 | . 2 . . Watcher 2 | . 2 . . Grunt 7 | . 4 . 3 Best Kill Streak 3 | . 3 . 3 Combat Bots Only 3 | . 3 . 3 Max Kills in Single Turn 1 | . 1 . 1 Gunslinging . | . . . . Exploded . | . . . . Melee . | . . . . Uniques/NPCs Destroyed . | . . . . Combat | -11 -10 -9 -8 -------- Run | Yrd Mat Mat Mat Hostile Shots Fired 247 | . 39 . 208 Missed 94 | . 18 . 76 Damage Taken 1913 | . 226 . 1687 Core 603 | . 46 . 557 Absorbed by Shields . | . . . . Core Remaining (%) 93 | 100 81 100 . Volleys Fired 29 | . 19 . 10 Largest 2 | . 2 . 1 Hottest 60 | . 40 . 60 Shots Fired 48 | . 38 . 10 Gun 38 | . 38 . . Cannon 10 | . . . 10 Launcher . | . . . . Special . | . . . . Kinetic 38 | . 38 . . Thermal 10 | . . . 10 Explosive . | . . . . Electromagnetic . | . . . . Robot Hit Streak 6 | . 6 . 3 Robot Miss Streak 4 | . 4 . 1 Penetration Max . | . . . . Secondary Targets 1 | . 1 . . Max Gunslinging Chain 1 | . 1 . . Shots Hit Robots 31 | . 19 . 12 Core Hits 16 | . 9 . 7 Critical Kills . | . . . . Critical Parts Destroyed . | . . . . Critical Strikes . | . . . . Melee Attacks 6 | . . . 6 Impact . | . . . . Slashing . | . . . . Piercing . | . . . . Sneak Attacks 3 | . . . 3 Combat Hostiles . | . . . . Follow-up Attacks . | . . . . Damage Inflicted 410 | . 244 . 166 Guns 244 | . 244 . . Cannons 159 | . . . 159 Explosions . | . . . . Melee . | . . . . Ramming 7 | . . . 7 Kinetic 244 | . 244 . . Thermal 159 | . . . 159 Explosive . | . . . . Electromagnetic . | . . . . Impact . | . . . . Slashing . | . . . . Piercing . | . . . . Highest Corruption . | . . . . Average Corruption . | . . . . Corruption Purged . | . . . . Corruption Blocked . | . . . . Overload Shots . | . . . . Overflow Damage . | . . . . Projectiles . | . . . . Explosions . | . . . . Melee . | . . . . Knockbacks . | . . . . Impact . | . . . . Kinetic . | . . . . Secondary . | . . . . Self-Inflicted Damage 3 | . . . 3 Shots . | . . . . Rammed 2 | . . . 2 Targets Rammed 2 | . . . 2 Kicked . | . . . . Crushed . | . . . . Highest Temperature 194 | . . . 194 Average Temperature 100 | . . . 100 Received Heat Transfer 243 | . 126 . 117 Siege Activations . | . . . . Robots Corrupted . | . . . . Combat Hostiles . | . . . . Parts Fried . | . . . . Impact Corruptions . | . . . . Robots Melted . | . . . . Combat Hostiles . | . . . . Parts Melted 1 | . . . 1 Heat Transferred 259 | . . . 259 Parts Sabotaged . | . . . . Parts Stolen . | . . . . Parts Stripped . | . . . . Power Chain Reactions . | . . . . Alert | -11 -10 -9 -8 ------- Run | Yrd Mat Mat Mat Peak Influence 151 | . 151 67 139 Initial 63 | . . 63 27 Average 56 | . 68 66 64 Maximum Alert Level . | . . . . Low Security (%) 100 | 100 100 100 100 Level 1 . | . . . . Level 2 . | . . . . Level 3 . | . . . . Level 4 . | . . . . Level 5 . | . . . . High Security . | . . . . Max Security . | . . . . Squads Dispatched 6 | . 2 . 4 Investigation 2 | . . . 2 Extermination . | . . . . Reinforcement 4 | . 2 . 2 Assault . | . . . . Garrison . | . . . . Intercept . | . . . . Searches Triggered . | . . . . Construction Impeded . | . . . . Haulers Reinforced . | . . . . Active Scanning Responses . | . . . . Cargo Convoy Interrupts . | . . . . Stealth | -11 -10 -9 -8 --------- Run | Yrd Mat Mat Mat Distress Signals 2 | . . . 2 Communications Jammed . | . . . . Distress Signals . | . . . . Times Spotted 23 | . 7 . 16 Peak Tracking Total 12 | . 3 . 12 Tactical Retreats 1 | . . . 1 Traps | -11 -10 -9 -8 ------- Run | Yrd Mat Mat Mat Traps Triggered . | . . . . Indirectly . | . . . . Trap Hack Attempts . | . . . . Triggered . | . . . . Disarmed . | . . . . Reprogrammed . | . . . . Reused . | . . . . Traps Extracted . | . . . . Installed . | . . . . Triggered . | . . . . Machines | -11 -10 -9 -8 ---------- Run | Yrd Mat Mat Mat Machines Disabled 1 | . 1 . . Max in Single Turn 1 | . 1 . . Machines Repaired . | . . . . Machines Dismantled . | . . . . Machines Sabotaged . | . . . . Overloaded Fab Kills . | . . . . Hacking | -11 -10 -9 -8 --------- Run | Yrd Mat Mat Mat Machines Accessed 5 | . 1 1 3 Terminals 5 | . 1 1 3 Fabricators . | . . . . Repair Stations . | . . . . Recycling Units . | . . . . Scanalyzers . | . . . . Garrison Access . | . . . . Total Hacks 20 | . 4 1 15 Successful 13 | . 3 1 9 Failed 7 | . 1 . 6 Catastrophic . | . . . . Database Lockouts . | . . . . Manual . | . . . . Terminals 20 | . 4 1 15 Fabricators . | . . . . Repair Stations . | . . . . Recycling Units . | . . . . Scanalyzers . | . . . . Garrison Access . | . . . . Terminal Hacks 13 | . 3 1 9 Record 5 | . . . 5 Alert Level 1 | . 1 . . Locate Traps 2 | . . . 2 Dispatch Records 1 | . . 1 . Patrol Status 1 | . . . 1 Registered Components 1 | . 1 . . Zone Layout 2 | . 1 . 1 Fabricator Hacks . | . . . . Repair Station Hacks . | . . . . Recycling Unit Hacks . | . . . . Scanalyzer . | . . . . Garrison Access Hacks . | . . . . Unauthorized Hacks . | . . . . Terminals . | . . . . Fabricators . | . . . . Repair Stations . | . . . . Recycling Units . | . . . . Scanalyzers . | . . . . Garrison Access . | . . . . Data Cores Recovered . | . . . . Used . | . . . . Hacking Detections 3 | . . . 3 Full Trace Events 2 | . . . 2 Feedback Events . | . . . . Feedback Blocked . | . . . . Robot Schematics Acquired . | . . . . Robots Built . | . . . . Authchips . | . . . . Time . | . . . . Total Robot Build Rating . | . . . . Part Schematics Acquired . | . . . . Parts Built . | . . . . Authchips . | . . . . Time . | . . . . Total Part Build Rating . | . . . . Parts Repaired . | . . . . Time . | . . . . Parts Recycled . | . . . . Recycled Matter . | . . . . Retrieved Matter . | . . . . Retrieved Components . | . . . . Parts Scanalyzed . | . . . . Part Schematics Acquired . | . . . . Parts Damaged . | . . . . Bothacking | -11 -10 -9 -8 ------------ Run | Yrd Mat Mat Mat Used RIF Installer . | . . . . Robots Hacked 2 | . . . 2 Non-combat 1 | . . . 1 Combat 1 | . . . 1 Robot Hacks Applied 4 | . . . 4 parse_system 2 | . . . 2 no_distress 1 | . . . 1 find_recycling 1 | . . . 1 Relay Couplers Released . | . . . . Fabnet Peak Effective % . | . . . . Robots Rewired . | . . . . Allies Hacked . | . . . . Hacks Repelled . | . . . . Allies | -11 -10 -9 -8 -------- Run | Yrd Mat Mat Mat Total Allies . | . . . . Largest Group . | . . . . Highest-Rated Group . | . . . . Highest-Rated Ally . | . . . . Total Orders . | . . . . Ally Attacks . | . . . . Total Damage . | . . . . Kills . | . . . . Allies Corrupted . | . . . . Allies Melted . | . . . . Intel | -11 -10 -9 -8 ------- Run | Yrd Mat Mat Mat Robot Analysis Total . | . . . . Derelict Logs Recovered . | . . . . Drone Launches . | . . . . Drone Recoveries . | . . . . Exploration | -11 -10 -9 -8 ------------- Run | Yrd Mat Mat Mat Turns Passed 794 | 113 228 174 279 Spaces Moved 478 | 75 138 122 143 Core 37 | 16 . . 21 Treads 153 | . . 31 122 Legs 288 | 59 138 91 . Wheels . | . . . . Hover . | . . . . Flight . | . . . . Fastest Speed 50 | 50 120 120 50 Average Speed 134 | 131 120 132 152 Slowest Speed 200 | 200 120 170 170 Overloaded Moves . | . . . . Propulsion Burnouts . | . . . . Robots Hopped . | . . . . Cave-ins Triggered . | . . . . Exploration Rate (%) 16 | 6 30 13 17 Regions Visited 3 Branch Regions . Pre-discovered Areas . | . . . . Known Exits Taken . | . . . . Unknown Exits Taken 3 | 1 1 1 . Scrap Searched . | . . . . Spaces Dug . | . . . . Terrain Destroyed . | . . . . Melee . | . . . . Projectile . | . . . . AOE . | . . . . Terrain Rammed . | . . . . Walls Destroyed . | . . . . Machines Disabled . | . . . . Actions | -11 -10 -9 -8 --------- Run | Yrd Mat Mat Mat Total 577 | 86 162 135 194 Wait 15 | . . . 15 Move 475 | 74 137 121 143 Hop . | . . . . Pick Up 9 | 4 . 2 3 Fast Attach 16 | 6 3 5 2 Attach 4 | . . . 4 Detach 7 | . 2 2 3 Swap 4 | 1 . . 3 Drop 10 | 1 1 5 3 Fire 29 | . 19 . 10 Melee 6 | . . . 6 Ram 2 | . . . 2 Kick . | . . . . Crush . | . . . . Escape Stasis . | . . . . Rewire . | . . . . Trap . | . . . . Miscellaneous . | . . . . Route ------- -11/Scrapyard -10/Materials -9/Materials -8/Materials History --------- Turn | Location | Event 15 | -11/Scrapyard | Discovered new exit (range 16) 114 | -11/Scrapyard | Entered Materials 272 | -10/Materials | Discovered new exit (range 13) 303 | -10/Materials | Build established: Mutant 342 | -10/Materials | Entered another Materials area 342 | -9/Materials | Evolved 2 slots: Propulsion x2 480 | -9/Materials | Discovered new exit (range 18) 516 | -9/Materials | Entered another Materials area 516 | -8/Materials | Evolved 2 slots: Power x2 785 | -8/Materials | Core integrity fell below 50% 793 | -8/Materials | Core integrity fell below 20% 795 | -8/Materials | Destroyed by X-57 Shotgunner with Shotgun Last Messages --------------- >>Query(Earth) Third planet from the Sun in the [Solar System]. Terrestrial homeworld of [Human] civilization. By the late 21st century that civilization drained the planet's resources and destabilized the environment to the point that global-scale technology was necessary to maintain an increasingly fragile planet. >>Traps(Locate) Found 4 traps in 1 array: 4x Shock Trap Map updated. 00789_ Slammed into S-10 Pest. 00790_ Slug penetrates S-10 Pest. 00790_ S-10 Pest destroyed. 00790_ Slammed into S-10 Pest. 00792_ S-10 Pest destroyed. 00792_ Penetrated by Slug. 00792_ Terminal disabled. 00794_ S-10 Pest destroyed. 00794_ Slug penetrates Terminal. 00794_ R-06 Scavenger collects Flight Unit. Map ----- +----------------------------------------------------+ | ?????????????????????????????????????????????????? | | ?????????????????????????????????????????????????? | | ?????????????????????????????????????????????????? | | ?????????????????????????????????????????????????? | | ?????????????????????????????????????????????????? | | ?????????????????????????????????????????????????? | | ?????????????????????????????????????????????????? | | ?????????????????????????????????????????????????? | | ????????????????????????????? ????????????????? | | ????????????????????????????# ????????????????? | | ????????????????????????????# ????????????????? | | ????????????????????????????# ????????????????? | | ????????????????????????????+ ????????????????? | | ????????????????????????????# #????????????????? | | ???????????????############## #????????????????? | | ???????????????? ###??????????????? | | ???????????????? % ???????????????? | | ????????????????? "" #???????????????? | | ?????????????????? " #???????????????? | | ??????????????????""" #???????????????? | | ?????????????????""""" ##########??????? | | ?????????????????""""" % # #??????? | | ??????????# """"" # """ #??????? | | ??????????+ """ r # """""#??????? | | ??????????# % s# """""#??????? | | ??????????# @ =s """""#??????? | | ??????????# [%# """ #??????? | | ??????? ### ##########+###a= x# #??????? | | ???????####?# #?????# ^ #* h s# "T" #??????? | | ????????????# #?????# ^^ # # """ #??????? | | ????????????# #?????# "" # ####/#####??????? | | ????????????# #?????# ^"""# #??# #??????????? | | ????????????# #?????# S"# #??# #??????????? | | ????????????# #?????# # #??# ???????????? | | ????????????# #?????######## #??# ???????????? | | ####????????# #####????????# #??# #??????????? | | # ####### ########## #### ##?????????? | | # #?????????? | | + T +?????????? | | # #?????????? | | ???????###### ################## #?????????? | | ???????#????##= ### """ # ## #?????????? | | ???????#?????#% #?# "T" # ]]]## #?????????? | | ???????#?????#= #?# # ]] ## #?????????? | | ???????#?????# #?# # ]] ## #?????????? | | ???????#?????# #?# # ## #?????????? | | ???????##????# #?# # ## ########+## | | ??????? #????# #######"######+### ? | | ??????? #????# ?? | | ??????? ###### #????????? | +----------------------------------------------------+ Best States ------------- Heat Dissipation 31 Energy Generation 23 Energy Capacity 250 Matter Stores 199 Matter Capacity 300 Sight Range 18 Robot Scan Range 14 Terrain Scan Density 10 Evasion (%) 55 Recoil Reduction 4 Defensive Hacking 10 Item Schematics ----------------- None Robot Schematics ------------------ None Fabricated ------------ Nothing Alien Tech Used ----------------- None Achievements -------------- None Challenges ------------ None Game ------ Seed MassLauncherOptics Manual? 0 Play Time 00:25:05 Cumulative 3.8 hours Start 2024.07.29 @ 14:52:33 End 2024.07.29 @ 15:32:51 Sessions 1 Manual Loads 0 Difficulty Rogue Special Mode None Game No. 4 Rogue 4 Adventurer 0 Explorer 0 Win Type - Total 0 Types 0/0/0/0/0/0/0/0/0 Lore% 7 Gallery% 6 Achievement% 7 Wizard Run 0 Options --------- Layout 0 ASCII 0 Keyboard 1 Movement Vi Keybinds 0 Fullscreen 1 Font 18/X11Bold Map View 76x50 Zoom Use 0% Tactical HUD 1 Map Filters NONE Filters NONE Steam 1 RUN: ea48b9d2-1356-4111-b1f0-191496ffb21b